[Event "*** Titled Tuesday Blitz"]
[Site "Chess.com"]
[Date "2020.11.03"]
[Round "3"]
[White "H3nriqueTV"]
[Black "NefeLV"]
[Result "0-1"]
[WhiteElo "2265"]
[BlackElo "1763"]
[TimeControl "180+1"]
[EndTime "10:30:08 PST"]
[Termination "NefeLV won by resignation"]

1. e4 {[%clk 0:02:54.8]} 1... e6 {[%clk 0:02:59.2]} 2. d4 {[%clk 0:02:42.1]}
2... d5 {[%clk 0:02:57.6]} 3. e5 {[%clk 0:02:42.6]} 3... c5 {[%clk 0:02:57.1]}
4. c3 {[%clk 0:02:43.3]} 4... Nc6 {[%clk 0:02:56.4]} 5. Nf3 {[%clk 0:02:44]}
5... Nge7 {[%clk 0:02:56]} 6. Bd3 {[%clk 0:02:44.6]} 6... Nf5 {[%clk 0:02:55.1]}
7. Bxf5 {[%clk 0:02:44.8]} 7... exf5 {[%clk 0:02:54.5]} 8. O-O {[%clk
0:02:45.7]} 8... cxd4 {[%clk 0:02:54]} 9. cxd4 {[%clk 0:02:44.3]} 9... Be6
{[%clk 0:02:53.6]} 10. Nc3 {[%clk 0:02:42.8]} 10... Be7 {[%clk 0:02:51.5]} 11.
Be3 {[%clk 0:02:42.6]} 11... g5 {[%clk 0:02:50]} 12. a3 {[%clk 0:02:27.7]} 12...
h5 {[%clk 0:02:46]} 13. b4 {[%clk 0:02:26.7]} 13... h4 {[%clk 0:02:44.8]} 14. b5
{[%clk 0:02:26.7]} 14... Na5 {[%clk 0:02:39.5]} 15. Na4 {[%clk 0:02:20.9]} 15...
g4 {[%clk 0:02:36.7]} 16. Ne1 {[%clk 0:02:19.7]} 16... Bg5 {[%clk 0:02:28.9]}
17. Nc5 {[%clk 0:02:18.1]} 17... f4 {[%clk 0:02:19.7]} 18. Bd2 {[%clk
0:02:08.4]} 18... h3 {[%clk 0:01:58.1]} 19. Nxe6 {[%clk 0:02:04.7]} 19... fxe6
{[%clk 0:01:55]} 20. Qxg4 {[%clk 0:02:03.1]} 20... hxg2 {[%clk 0:01:54.8]} 21.
Qxe6+ {[%clk 0:02:03.1]} 21... Be7 {[%clk 0:01:51.5]} 22. Nxg2 {[%clk
0:01:57.4]} 22... f3 {[%clk 0:01:49.5]} 23. Nf4 {[%clk 0:01:55.7]} 23... Nc4
{[%clk 0:01:39.5]} 24. Bb4 {[%clk 0:01:53.1]} 24... Qd7 {[%clk 0:01:31.8]} 25.
Qxd7+ {[%clk 0:01:26.2]} 25... Kxd7 {[%clk 0:01:30.6]} 26. Bxe7 {[%clk
0:01:26.9]} 26... Rag8+ {[%clk 0:01:26.5]} 27. Kh1 {[%clk 0:01:26.4]} 27... Kxe7
{[%clk 0:01:25.6]} 28. Nxd5+ {[%clk 0:01:25.2]} 28... Ke6 {[%clk 0:01:25.6]} 29.
Ne3 {[%clk 0:01:24.4]} 29... Nd2 {[%clk 0:01:19.5]} 30. Rg1 {[%clk 0:01:14]}
30... Ne4 {[%clk 0:01:17.7]} 31. Rxg8 {[%clk 0:01:06.6]} 31... Nxf2+ {[%clk
0:01:17]} 32. Kg1 {[%clk 0:01:06.4]} 32... Nh3+ {[%clk 0:01:17.2]} 33. Kf1
{[%clk 0:01:05.9]} 33... Rxg8 {[%clk 0:01:16.5]} 34. d5+ {[%clk 0:00:33.5]}
34... Kxe5 {[%clk 0:01:02.9]} 35. Nc4+ {[%clk 0:00:27.1]} 35... Kf4 {[%clk
0:01:02.3]} 36. Ke1 {[%clk 0:00:21.8]} 36... Rg1+ {[%clk 0:00:59.6]} 37. Kd2
{[%clk 0:00:22.2]} 37... Rxa1 {[%clk 0:00:59.1]} 38. d6 {[%clk 0:00:23.1]} 38...
Ra2+ {[%clk 0:00:55.4]} 39. Kd3 {[%clk 0:00:21]} 39... f2 {[%clk 0:00:55]} 40.
d7 {[%clk 0:00:18.5]} 40... f1=Q+ {[%clk 0:00:52.7]} 41. Kd4 {[%clk 0:00:19.4]}
0-1

[Event "*** Titled Tuesday Blitz"]
[Site "Chess.com"]
[Date "2020.11.03"]
[Round "3"]
[White "fabianvivasz"]
[Black "Ranindu2003"]
[Result "0-1"]
[WhiteElo "2378"]
[BlackElo "2592"]
[TimeControl "180+1"]
[EndTime "10:30:11 PST"]
[Termination "Ranindu2003 won on time"]

1. e4 {[%clk 0:03:00.9]} 1... g6 {[%clk 0:02:57.9]} 2. d4 {[%clk 0:02:58.4]}
2... Bg7 {[%clk 0:02:58.5]} 3. Nc3 {[%clk 0:02:58.3]} 3... d6 {[%clk 0:02:58.9]}
4. f4 {[%clk 0:02:56.2]} 4... a6 {[%clk 0:02:58.6]} 5. Bd3 {[%clk 0:02:54.8]}
5... b5 {[%clk 0:02:58.5]} 6. Nf3 {[%clk 0:02:54.6]} 6... Nd7 {[%clk 0:02:58.5]}
7. e5 {[%clk 0:02:49.9]} 7... Bb7 {[%clk 0:02:56.8]} 8. Qe2 {[%clk 0:02:46]}
8... e6 {[%clk 0:02:45]} 9. Ne4 {[%clk 0:02:17.7]} 9... d5 {[%clk 0:02:42.7]}
10. Neg5 {[%clk 0:02:17.2]} 10... c5 {[%clk 0:02:32.2]} 11. c3 {[%clk
0:02:06.8]} 11... Ne7 {[%clk 0:02:32.4]} 12. g4 {[%clk 0:01:39.9]} 12... h5
{[%clk 0:02:26.5]} 13. Qg2 {[%clk 0:01:17.2]} 13... hxg4 {[%clk 0:02:20.7]} 14.
Qxg4 {[%clk 0:01:17.6]} 14... Qb6 {[%clk 0:02:20.4]} 15. Rg1 {[%clk 0:01:08.9]}
15... b4 {[%clk 0:02:05.6]} 16. Nxf7 {[%clk 0:00:41.9]} 16... Kxf7 {[%clk
0:01:36.2]} 17. Bxg6+ {[%clk 0:00:40.4]} 17... Kf8 {[%clk 0:01:35.2]} 18. Ng5
{[%clk 0:00:31.6]} 18... Nxg6 {[%clk 0:00:59.3]} 19. Nxe6+ {[%clk 0:00:29.5]}
19... Ke7 {[%clk 0:00:59.7]} 20. f5 {[%clk 0:00:29.4]} 20... Bxe5 {[%clk
0:00:34.2]} 21. dxe5 {[%clk 0:00:15.7]} 21... Ndxe5 {[%clk 0:00:33.4]} 22. Qg5+
{[%clk 0:00:14.4]} 22... Kd7 {[%clk 0:00:29.2]} 23. Rg3 {[%clk 0:00:01.2]} 23...
d4 {[%clk 0:00:28.9]} 0-1

[Event "*** Titled Tuesday Blitz"]
[Site "Chess.com"]
[Date "2020.11.03"]
[Round "3"]
[White "cukin84"]
[Black "mortngabriel"]
[Result "1-0"]
[WhiteElo "2078"]
[BlackElo "2321"]
[TimeControl "180+1"]
[EndTime "10:30:11 PST"]
[Termination "cukin84 won by resignation"]

1. e4 {[%clk 0:03:00.9]} 1... c5 {[%clk 0:02:59.6]} 2. Nc3 {[%clk 0:03:00.2]}
2... Nc6 {[%clk 0:02:59.1]} 3. Bb5 {[%clk 0:02:59.3]} 3... Nd4 {[%clk
0:02:58.5]} 4. Bc4 {[%clk 0:02:59]} 4... e6 {[%clk 0:02:58.4]} 5. Nf3 {[%clk
0:02:58.7]} 5... Nf6 {[%clk 0:02:58.4]} 6. d3 {[%clk 0:02:54.1]} 6... a6 {[%clk
0:02:51.3]} 7. a4 {[%clk 0:02:48.6]} 7... Rb8 {[%clk 0:02:45]} 8. O-O {[%clk
0:02:47.5]} 8... b5 {[%clk 0:02:44.6]} 9. axb5 {[%clk 0:02:47.1]} 9... axb5
{[%clk 0:02:45.5]} 10. Ba2 {[%clk 0:02:25]} 10... d6 {[%clk 0:02:40.8]} 11. Nxd4
{[%clk 0:02:17.3]} 11... cxd4 {[%clk 0:02:40.6]} 12. Ne2 {[%clk 0:02:17.3]}
12... Qb6 {[%clk 0:02:36]} 13. c3 {[%clk 0:02:14.4]} 13... dxc3 {[%clk
0:02:33.4]} 14. bxc3 {[%clk 0:02:13]} 14... Be7 {[%clk 0:02:21.1]} 15. Be3
{[%clk 0:02:12.2]} 15... Qc7 {[%clk 0:02:21.7]} 16. Bb3 {[%clk 0:02:01.1]} 16...
O-O {[%clk 0:02:21.1]} 17. Ra7 {[%clk 0:02:00.2]} 17... Rb7 {[%clk 0:02:18.8]}
18. Ra8 {[%clk 0:01:59.6]} 18... Bd7 {[%clk 0:02:04.7]} 19. Rxf8+ {[%clk
0:01:58.2]} 19... Bxf8 {[%clk 0:02:05.6]} 20. Qd2 {[%clk 0:01:58]} 20... Qa5
{[%clk 0:01:47.8]} 21. Rb1 {[%clk 0:01:43.5]} 21... b4 {[%clk 0:01:41.4]} 22. c4
{[%clk 0:01:24.1]} 22... d5 {[%clk 0:01:19.4]} 23. Bd4 {[%clk 0:01:20.9]} 23...
dxc4 {[%clk 0:01:07.9]} 24. Bxc4 {[%clk 0:01:16]} 24... e5 {[%clk 0:01:07]} 25.
Ra1 {[%clk 0:01:04.3]} 25... Qc7 {[%clk 0:01:06]} 26. Be3 {[%clk 0:01:02.5]}
26... Ng4 {[%clk 0:01:01.6]} 27. Rc1 {[%clk 0:01:00.1]} 27... Qa5 {[%clk
0:00:48.3]} 28. Bg5 {[%clk 0:00:46.9]} 28... Bc5 {[%clk 0:00:42.2]} 29. d4
{[%clk 0:00:33.4]} 29... Bxd4 {[%clk 0:00:30.2]} 30. Nxd4 {[%clk 0:00:32.7]}
30... exd4 {[%clk 0:00:31.1]} 31. Qf4 {[%clk 0:00:31.9]} 31... Ne5 {[%clk
0:00:27.7]} 32. Bd5 {[%clk 0:00:28.3]} 32... Nd3 {[%clk 0:00:17.3]} 33. Qxf7+
{[%clk 0:00:26.3]} 1-0

[Event "*** Titled Tuesday Blitz"]
[Site "Chess.com"]
[Date "2020.11.03"]
[Round "3"]
[White "GMTalks_Youtube"]
[Black "MattyDPerrine"]
[Result "1-0"]
[WhiteElo "2605"]
[BlackElo "2381"]
[TimeControl "180+1"]
[EndTime "10:30:12 PST"]
[Termination "GMTalks_Youtube won on time"]

1. e4 {[%clk 0:03:00.5]} 1... c5 {[%clk 0:02:59.3]} 2. Nf3 {[%clk 0:02:59.9]}
2... e6 {[%clk 0:02:59.8]} 3. c4 {[%clk 0:02:58.2]} 3... Nc6 {[%clk 0:02:58.4]}
4. Nc3 {[%clk 0:02:57.6]} 4... e5 {[%clk 0:02:58]} 5. a3 {[%clk 0:02:55.3]} 5...
a5 {[%clk 0:02:39.4]} 6. Bd3 {[%clk 0:02:52.2]} 6... g6 {[%clk 0:02:38.1]} 7. h4
{[%clk 0:02:45.5]} 7... h5 {[%clk 0:02:37.2]} 8. Bc2 {[%clk 0:02:45]} 8... Bg7
{[%clk 0:02:37.5]} 9. Ba4 {[%clk 0:02:45.6]} 9... Nge7 {[%clk 0:02:36.2]} 10. d3
{[%clk 0:02:45.2]} 10... d6 {[%clk 0:02:31.1]} 11. Nd2 {[%clk 0:02:35]} 11...
Bh6 {[%clk 0:02:20.1]} 12. Nd5 {[%clk 0:02:32.5]} 12... O-O {[%clk 0:02:08.3]}
13. Nf3 {[%clk 0:02:17]} 13... Bxc1 {[%clk 0:01:53.5]} 14. Qxc1 {[%clk
0:02:15.5]} 14... Nxd5 {[%clk 0:01:53.2]} 15. cxd5 {[%clk 0:02:10.6]} 15... Nd4
{[%clk 0:01:53.1]} 16. Nxd4 {[%clk 0:02:10.1]} 16... exd4 {[%clk 0:01:36.9]} 17.
Qh6 {[%clk 0:01:59.7]} 17... Qf6 {[%clk 0:01:35.1]} 18. f4 {[%clk 0:01:51.3]}
18... Bg4 {[%clk 0:01:22]} 19. Qg5 {[%clk 0:01:18.8]} 19... Qg7 {[%clk
0:00:46.7]} 20. Qe7 {[%clk 0:01:16.6]} 20... f5 {[%clk 0:00:10.6]} 21. Qxg7+
{[%clk 0:01:05.3]} 21... Kxg7 {[%clk 0:00:11.5]} 22. e5 {[%clk 0:01:05.9]} 22...
dxe5 {[%clk 0:00:12.4]} 23. fxe5 {[%clk 0:01:05.8]} 23... Rae8 {[%clk
0:00:11.2]} 24. Bxe8 {[%clk 0:00:33]} 24... Rxe8 {[%clk 0:00:12.1]} 25. e6
{[%clk 0:00:33.7]} 25... Kf6 {[%clk 0:00:12]} 26. b4 {[%clk 0:00:34.2]} 26...
axb4 {[%clk 0:00:06.3]} 27. axb4 {[%clk 0:00:33.8]} 27... Ke5 {[%clk 0:00:04.7]}
28. Kd2 {[%clk 0:00:24.9]} 28... Kxd5 {[%clk 0:00:03.9]} 29. Rhe1 {[%clk
0:00:24.7]} 1-0

[Event "*** Titled Tuesday Blitz"]
[Site "Chess.com"]
[Date "2020.11.03"]
[Round "3"]
[White "ChSalas"]
[Black "vugarrasulov"]
[Result "1-0"]
[WhiteElo "2506"]
[BlackElo "2846"]
[TimeControl "180+1"]
[EndTime "10:30:13 PST"]
[Termination "ChSalas won by checkmate"]

1. d4 {[%clk 0:02:57.2]} 1... Nf6 {[%clk 0:03:00.3]} 2. Nf3 {[%clk 0:02:55.1]}
2... d5 {[%clk 0:03:00.1]} 3. c3 {[%clk 0:02:53.3]} 3... c6 {[%clk 0:03:00.5]}
4. Bf4 {[%clk 0:02:52.1]} 4... Bf5 {[%clk 0:03:00.8]} 5. e3 {[%clk 0:02:51.2]}
5... e6 {[%clk 0:03:01.3]} 6. Nbd2 {[%clk 0:02:46.6]} 6... Bd6 {[%clk
0:03:00.9]} 7. Bxd6 {[%clk 0:02:43.4]} 7... Qxd6 {[%clk 0:03:01.8]} 8. Qb3
{[%clk 0:02:39]} 8... b6 {[%clk 0:03:00]} 9. Be2 {[%clk 0:02:35.5]} 9... O-O
{[%clk 0:03:00.5]} 10. O-O {[%clk 0:02:34]} 10... h6 {[%clk 0:03:01.1]} 11. c4
{[%clk 0:02:32.4]} 11... Nbd7 {[%clk 0:02:59.4]} 12. Rfc1 {[%clk 0:02:29.9]}
12... a5 {[%clk 0:02:59.3]} 13. Bd3 {[%clk 0:02:17.1]} 13... a4 {[%clk
0:02:55.1]} 14. Qc2 {[%clk 0:02:16.5]} 14... Bxd3 {[%clk 0:02:55.6]} 15. Qxd3
{[%clk 0:02:16.7]} 15... a3 {[%clk 0:02:56.3]} 16. b3 {[%clk 0:02:12.8]} 16...
e5 {[%clk 0:02:56.7]} 17. dxe5 {[%clk 0:02:09.8]} 17... Nxe5 {[%clk 0:02:57.6]}
18. Nxe5 {[%clk 0:02:09.5]} 18... Qxe5 {[%clk 0:02:58.5]} 19. Nf3 {[%clk
0:02:08.6]} 19... Qe4 {[%clk 0:02:56.7]} 20. Qxe4 {[%clk 0:01:55.7]} 20... dxe4
{[%clk 0:02:57.6]} 21. Nd4 {[%clk 0:01:55.1]} 21... c5 {[%clk 0:02:58.1]} 22.
Nb5 {[%clk 0:01:54.9]} 22... Rfd8 {[%clk 0:02:56.6]} 23. Rd1 {[%clk 0:01:54.2]}
23... Rd3 {[%clk 0:02:55.1]} 24. Rxd3 {[%clk 0:01:52.3]} 24... exd3 {[%clk
0:02:56]} 25. Rd1 {[%clk 0:01:52.3]} 25... Rd8 {[%clk 0:02:54.4]} 26. f3 {[%clk
0:01:49.8]} 26... g5 {[%clk 0:02:36.4]} 27. Rd2 {[%clk 0:01:47.9]} 27... Ne8
{[%clk 0:02:25.7]} 28. Kf2 {[%clk 0:01:36.6]} 28... Nc7 {[%clk 0:02:26]} 29.
Nxc7 {[%clk 0:01:35.5]} 29... Rd7 {[%clk 0:02:22.7]} 30. Nd5 {[%clk 0:01:33.4]}
30... Kg7 {[%clk 0:02:23.2]} 31. Nxb6 {[%clk 0:01:32.2]} 31... Rb7 {[%clk
0:00:49.7]} 32. Na4 {[%clk 0:01:27.8]} 32... Rc7 {[%clk 0:00:47.8]} 33. Rxd3
{[%clk 0:01:26.2]} 33... f5 {[%clk 0:00:48.7]} 34. Rd5 {[%clk 0:01:25.5]} 34...
Kf6 {[%clk 0:00:49.6]} 35. Nxc5 {[%clk 0:01:23.4]} 35... Re7 {[%clk 0:00:50.5]}
36. Nd3 {[%clk 0:01:21]} 36... Ra7 {[%clk 0:00:51.4]} 37. b4 {[%clk 0:01:17.2]}
37... Rc7 {[%clk 0:00:52.3]} 38. Rc5 {[%clk 0:01:16.5]} 38... Rd7 {[%clk
0:00:52.4]} 39. Ke2 {[%clk 0:01:15.5]} 39... Ra7 {[%clk 0:00:53]} 40. Ra5 {[%clk
0:01:14.3]} 40... Rc7 {[%clk 0:00:53.3]} 41. c5 {[%clk 0:01:13.6]} 41... f4
{[%clk 0:00:53.8]} 42. e4 {[%clk 0:01:11.9]} 42... Rd7 {[%clk 0:00:53.2]} 43.
Rxa3 {[%clk 0:01:11.3]} 43... Rd4 {[%clk 0:00:54.1]} 44. Rc3 {[%clk 0:01:10.5]}
44... Ke7 {[%clk 0:00:53.8]} 45. a4 {[%clk 0:01:07.8]} 45... Kd8 {[%clk
0:00:54.7]} 46. a5 {[%clk 0:01:06.8]} 46... Kc7 {[%clk 0:00:54.2]} 47. c6 {[%clk
0:01:05.6]} 47... Rd8 {[%clk 0:00:53.4]} 48. b5 {[%clk 0:01:04.3]} 48... Rd4
{[%clk 0:00:54.3]} 49. b6+ {[%clk 0:01:03.9]} 49... Kc8 {[%clk 0:00:55.2]} 50.
c7 {[%clk 0:01:02.3]} 50... Ra4 {[%clk 0:00:54.5]} 51. b7+ {[%clk 0:01:01.8]}
51... Kd7 {[%clk 0:00:55.2]} 52. c8=Q+ {[%clk 0:01:01.8]} 52... Kd6 {[%clk
0:00:53.8]} 53. Qc6+ {[%clk 0:01:01.3]} 53... Ke7 {[%clk 0:00:53.3]} 54. Qxa4
{[%clk 0:01:01.3]} 54... g4 {[%clk 0:00:53.6]} 55. fxg4 {[%clk 0:00:59.8]} 55...
f3+ {[%clk 0:00:53.7]} 56. gxf3 {[%clk 0:00:59.3]} 56... h5 {[%clk 0:00:54.6]}
57. b8=Q {[%clk 0:00:55.2]} 57... Kf6 {[%clk 0:00:55.5]} 58. Qf4+ {[%clk
0:00:54.6]} 58... Kg7 {[%clk 0:00:55.4]} 59. Qd7+ {[%clk 0:00:52.9]} 59... Kg6
{[%clk 0:00:55.8]} 60. Rc6# {[%clk 0:00:50.2]} 1-0

[Event "*** Titled Tuesday Blitz"]
[Site "Chess.com"]
[Date "2020.11.03"]
[Round "3"]
[White "FMJoseHerrera"]
[Black "Mikhal867"]
[Result "1-0"]
[WhiteElo "2566"]
[BlackElo "2355"]
[TimeControl "180+1"]
[EndTime "10:30:15 PST"]
[Termination "FMJoseHerrera won by resignation"]

1. Nf3 {[%clk 0:03:00.9]} 1... c5 {[%clk 0:02:48.8]} 2. g3 {[%clk 0:03:01.8]}
2... d5 {[%clk 0:02:46.4]} 3. Bg2 {[%clk 0:03:02.1]} 3... Nc6 {[%clk 0:02:44.9]}
4. c4 {[%clk 0:03:02.4]} 4... d4 {[%clk 0:02:44.4]} 5. O-O {[%clk 0:03:02.2]}
5... Bf5 {[%clk 0:02:32.2]} 6. d3 {[%clk 0:02:59.1]} 6... Qd7 {[%clk 0:02:31.9]}
7. Re1 {[%clk 0:02:57.4]} 7... Nf6 {[%clk 0:02:27.3]} 8. a3 {[%clk 0:02:50.2]}
8... Bh3 {[%clk 0:02:16.6]} 9. Bh1 {[%clk 0:02:49.8]} 9... e6 {[%clk 0:01:47.1]}
10. b4 {[%clk 0:02:48.3]} 10... cxb4 {[%clk 0:01:46.3]} 11. Bg5 {[%clk
0:02:45.4]} 11... h6 {[%clk 0:01:41.8]} 12. Bxf6 {[%clk 0:02:42.6]} 12... gxf6
{[%clk 0:01:41.7]} 13. Qa4 {[%clk 0:02:19.9]} 13... e5 {[%clk 0:01:37.4]} 14.
Nh4 {[%clk 0:02:13.5]} 14... Rb8 {[%clk 0:01:08.8]} 15. Bd5 {[%clk 0:01:51.7]}
15... a6 {[%clk 0:01:00]} 16. Rc1 {[%clk 0:01:42.1]} 16... Be6 {[%clk
0:00:44.8]} 17. Bg2 {[%clk 0:01:38.8]} 17... h5 {[%clk 0:00:33.2]} 18. c5 {[%clk
0:01:18.9]} 18... b3 {[%clk 0:00:27.5]} 19. Nd2 {[%clk 0:00:47.1]} 19... b2
{[%clk 0:00:26.9]} 20. Rab1 {[%clk 0:00:47.7]} 20... bxc1=Q+ {[%clk 0:00:25.4]}
21. Rxc1 {[%clk 0:00:48.6]} 21... Bh6 {[%clk 0:00:24.3]} 22. Ne4 {[%clk
0:00:46]} 22... Qe7 {[%clk 0:00:19.2]} 23. Rb1 {[%clk 0:00:42.8]} 23... Bd7
{[%clk 0:00:14.2]} 24. Nd6+ {[%clk 0:00:41.6]} 24... Kf8 {[%clk 0:00:13.9]} 25.
Bxc6 {[%clk 0:00:23]} 25... Bxc6 {[%clk 0:00:13]} 26. Qxc6 {[%clk 0:00:23.1]}
26... bxc6 {[%clk 0:00:08.4]} 27. Rxb8+ {[%clk 0:00:24]} 27... Kg7 {[%clk
0:00:07.8]} 28. Nhf5+ {[%clk 0:00:24.3]} 28... Kh7 {[%clk 0:00:05.7]} 29. Rxh8+
{[%clk 0:00:24.1]} 29... Kxh8 {[%clk 0:00:05.7]} 30. Nxe7 {[%clk 0:00:24.6]} 1-0

[Event "*** Titled Tuesday Blitz"]
[Site "Chess.com"]
[Date "2020.11.03"]
[Round "3"]
[White "GregShahade"]
[Black "BogdanDeac"]
[Result "0-1"]
[WhiteElo "2659"]
[BlackElo "2877"]
[TimeControl "180+1"]
[EndTime "10:30:16 PST"]
[Termination "BogdanDeac won on time"]

1. e4 {[%clk 0:03:00.9]} 1... c5 {[%clk 0:02:58.7]} 2. Nf3 {[%clk 0:03:01.2]}
2... d6 {[%clk 0:02:58.2]} 3. d4 {[%clk 0:03:01.6]} 3... cxd4 {[%clk 0:02:59.1]}
4. Nxd4 {[%clk 0:03:02.1]} 4... Nf6 {[%clk 0:02:59.7]} 5. Nc3 {[%clk 0:03:02.5]}
5... a6 {[%clk 0:03:00]} 6. Be3 {[%clk 0:03:02.4]} 6... e6 {[%clk 0:02:59.5]} 7.
f3 {[%clk 0:03:01.9]} 7... b5 {[%clk 0:02:56.8]} 8. Qd2 {[%clk 0:02:57.9]} 8...
Nbd7 {[%clk 0:02:55.5]} 9. g4 {[%clk 0:02:58]} 9... h6 {[%clk 0:02:54.5]} 10.
O-O-O {[%clk 0:02:53.6]} 10... b4 {[%clk 0:02:53.8]} 11. Nce2 {[%clk 0:02:50.9]}
11... Qc7 {[%clk 0:02:52.5]} 12. h4 {[%clk 0:02:47.6]} 12... d5 {[%clk
0:02:49.9]} 13. g5 {[%clk 0:02:46.1]} 13... hxg5 {[%clk 0:02:42.9]} 14. exd5
{[%clk 0:02:46.3]} 14... Nxd5 {[%clk 0:02:36.6]} 15. Bxg5 {[%clk 0:02:46.5]}
15... N7b6 {[%clk 0:02:36.7]} 16. Nf4 {[%clk 0:02:35.5]} 16... Bd6 {[%clk
0:02:34.4]} 17. Nxd5 {[%clk 0:02:18.6]} 17... Nxd5 {[%clk 0:02:33.3]} 18. Kb1
{[%clk 0:01:52.2]} 18... Bf4 {[%clk 0:01:55.9]} 19. Bxf4 {[%clk 0:01:44.2]}
19... Qxf4 {[%clk 0:01:54.4]} 20. Qd3 {[%clk 0:00:57.8]} 20... Bb7 {[%clk
0:01:17.2]} 21. Rg1 {[%clk 0:00:41.5]} 21... Rxh4 {[%clk 0:00:51.8]} 22. Rxg7
{[%clk 0:00:33.6]} 22... O-O-O {[%clk 0:00:49.5]} 23. Be2 {[%clk 0:00:09.5]}
23... Nc7 {[%clk 0:00:18.8]} 24. Qc4 {[%clk 0:00:06.2]} 24... Rxd4 {[%clk
0:00:16.5]} 25. Rg8+ {[%clk 0:00:06.7]} 25... Kd7 {[%clk 0:00:15.6]} 26. Rxd4+
{[%clk 0:00:03.2]} 26... Qxd4 {[%clk 0:00:15.4]} 0-1

[Event "*** Titled Tuesday Blitz"]
[Site "Chess.com"]
[Date "2020.11.03"]
[Round "3"]
[White "Michaelson_11"]
[Black "saraswathii"]
[Result "0-1"]
[WhiteElo "2144"]
[BlackElo "2374"]
[TimeControl "180+1"]
[EndTime "10:30:16 PST"]
[Termination "saraswathii won by resignation"]

1. e4 {[%clk 0:03:00.9]} 1... c5 {[%clk 0:02:59.9]} 2. Nf3 {[%clk 0:03:00.7]}
2... e6 {[%clk 0:02:55.6]} 3. d4 {[%clk 0:03:00]} 3... cxd4 {[%clk 0:02:52.4]}
4. Nxd4 {[%clk 0:03:00.9]} 4... Nf6 {[%clk 0:02:46.4]} 5. Nc3 {[%clk 0:02:59.8]}
5... Nc6 {[%clk 0:02:42.4]} 6. Ndb5 {[%clk 0:02:57.6]} 6... Bb4 {[%clk
0:02:38.9]} 7. a3 {[%clk 0:02:49.8]} 7... Bxc3+ {[%clk 0:02:38.5]} 8. Nxc3
{[%clk 0:02:50.7]} 8... d5 {[%clk 0:02:38.3]} 9. exd5 {[%clk 0:02:51.6]} 9...
exd5 {[%clk 0:02:38.4]} 10. Bd3 {[%clk 0:02:52.5]} 10... d4 {[%clk 0:02:37.9]}
11. Ne2 {[%clk 0:02:46.3]} 11... O-O {[%clk 0:02:37.6]} 12. O-O {[%clk
0:02:46.9]} 12... Qd5 {[%clk 0:02:33.3]} 13. Bf4 {[%clk 0:02:41.8]} 13... h6
{[%clk 0:02:29.3]} 14. Qd2 {[%clk 0:02:39.8]} 14... Ne5 {[%clk 0:02:20.2]} 15.
h3 {[%clk 0:02:28.9]} 15... Nxd3 {[%clk 0:02:17.6]} 16. Qxd3 {[%clk 0:02:29.8]}
16... Bf5 {[%clk 0:02:15.1]} 17. Qxd4 {[%clk 0:02:24.2]} 17... Bxc2 {[%clk
0:02:08.2]} 18. Bxh6 {[%clk 0:02:15.3]} 18... Bd3 {[%clk 0:01:58.1]} 19. Qxd5
{[%clk 0:00:52.6]} 19... Nxd5 {[%clk 0:01:53.4]} 20. Nf4 {[%clk 0:00:52.6]}
20... Nxf4 {[%clk 0:01:24.1]} 21. Bxf4 {[%clk 0:00:53.5]} 21... Bxf1 {[%clk
0:01:21]} 22. Rxf1 {[%clk 0:00:54.4]} 22... Rfe8 {[%clk 0:01:19.3]} 23. Be3
{[%clk 0:00:47.9]} 23... a6 {[%clk 0:01:13.1]} 24. Rc1 {[%clk 0:00:43.1]} 24...
Rac8 {[%clk 0:01:05.2]} 25. Rd1 {[%clk 0:00:42]} 25... Red8 {[%clk 0:01:04.4]}
26. Re1 {[%clk 0:00:38]} 26... Rc2 {[%clk 0:00:54.2]} 27. Rb1 {[%clk 0:00:29]}
27... Rd3 {[%clk 0:00:49.8]} 28. b4 {[%clk 0:00:20.3]} 28... Rxa3 {[%clk
0:00:48.6]} 29. Rd1 {[%clk 0:00:20.9]} 29... Rb3 {[%clk 0:00:43.8]} 30. Rd8+
{[%clk 0:00:20.7]} 30... Kh7 {[%clk 0:00:43.2]} 31. Bc5 {[%clk 0:00:15.1]} 31...
a5 {[%clk 0:00:42.6]} 32. Rd4 {[%clk 0:00:09.6]} 32... a4 {[%clk 0:00:39.6]} 33.
Rd7 {[%clk 0:00:07.5]} 33... a3 {[%clk 0:00:38.6]} 34. Rxb7 {[%clk 0:00:07.3]}
34... Rxc5 {[%clk 0:00:37.7]} 0-1

[Event "*** Titled Tuesday Blitz"]
[Site "Chess.com"]
[Date "2020.11.03"]
[Round "3"]
[White "PauloCesarCosta_sad"]
[Black "nitpicker"]
[Result "1-0"]
[WhiteElo "2334"]
[BlackElo "2129"]
[TimeControl "180+1"]
[EndTime "10:30:18 PST"]
[Termination "PauloCesarCosta_sad won on time"]

1. Nf3 {[%clk 0:03:00.9]} 1... Nf6 {[%clk 0:02:57.8]} 2. c4 {[%clk 0:03:00.6]}
2... b6 {[%clk 0:02:51]} 3. g3 {[%clk 0:02:59.4]} 3... Bb7 {[%clk 0:02:50.8]} 4.
Bg2 {[%clk 0:02:59.9]} 4... e6 {[%clk 0:02:49.8]} 5. O-O {[%clk 0:02:59.9]} 5...
c6 {[%clk 0:02:44.7]} 6. Nc3 {[%clk 0:02:57.8]} 6... d5 {[%clk 0:02:44.6]} 7. b3
{[%clk 0:02:36.5]} 7... d4 {[%clk 0:02:40]} 8. Nb1 {[%clk 0:02:11.3]} 8... c5
{[%clk 0:02:40.1]} 9. e3 {[%clk 0:01:56.7]} 9... Nc6 {[%clk 0:02:07.8]} 10. exd4
{[%clk 0:01:56.8]} 10... cxd4 {[%clk 0:01:16.9]} 11. Re1 {[%clk 0:01:57.1]}
11... Bc5 {[%clk 0:01:10.1]} 12. d3 {[%clk 0:01:49.3]} 12... O-O {[%clk
0:01:05.9]} 13. Ba3 {[%clk 0:01:49.2]} 13... a5 {[%clk 0:00:59.5]} 14. Bxc5
{[%clk 0:01:39.8]} 14... bxc5 {[%clk 0:01:00.4]} 15. Na3 {[%clk 0:01:40.3]}
15... a4 {[%clk 0:00:41.6]} 16. Nb5 {[%clk 0:01:39.5]} 16... axb3 {[%clk
0:00:32.7]} 17. Qxb3 {[%clk 0:01:32.5]} 17... Qe7 {[%clk 0:00:20.7]} 18. a4
{[%clk 0:01:26.8]} 18... Rfb8 {[%clk 0:00:19.9]} 19. Qd1 {[%clk 0:01:18.9]}
19... Nb4 {[%clk 0:00:19.6]} 20. Qd2 {[%clk 0:01:12.5]} 20... Ra6 {[%clk
0:00:18.6]} 21. Reb1 {[%clk 0:01:07.6]} 21... Nc6 {[%clk 0:00:15.2]} 22. Qe2
{[%clk 0:00:56.7]} 22... Rba8 {[%clk 0:00:13.8]} 23. Ne5 {[%clk 0:00:45]} 23...
Nxe5 {[%clk 0:00:10.6]} 24. Bxb7 {[%clk 0:00:43.6]} 24... Qxb7 {[%clk
0:00:09.5]} 25. Qxe5 {[%clk 0:00:44.5]} 25... Qc6 {[%clk 0:00:04.7]} 26. Nc7
{[%clk 0:00:37.6]} 26... Nd7 {[%clk 0:00:04.3]} 27. Nxa8 {[%clk 0:00:28]} 27...
Rxa8 {[%clk 0:00:03.6]} 28. Qe4 {[%clk 0:00:26]} 28... Qxe4 {[%clk 0:00:01.5]}
29. dxe4 {[%clk 0:00:26.3]} 29... Ne5 {[%clk 0:00:01.7]} 30. Rc1 {[%clk
0:00:22.1]} 1-0